bitfinex/quotes_BTCUSD_20230114
["timestamp","ask_amount","ask_price","bid_price","bid_amount"]
[1673734210831,2.5051141,20881.0,20880.0,0.01501727]
[1673734211066,2.8249041,20881.0,20880.0,0.01501727]
[1673734211550,2.5051141,20881.0,20880.0,0.01501727]
[1673734211801,2.8249041,20881.0,20880.0,0.01501727]
[1673734212043,2.5051141,20881.0,20880.0,0.01501727]
[1673734212287,2.8249041,20881.0,20880.0,0.01501727]
[1673734213259,3.09681579,20881.0,20880.0,0.01501727]
[1673734213582,3.41660579,20881.0,20880.0,0.01501727]
[1673734214857,3.84519112,20881.0,20880.0,0.01501727]
[1673734215369,3.86423112,20881.0,20880.0,0.01501727]
[1673734215593,3.43564579,20881.0,20880.0,0.01501727]
[1673734217369,3.86423112,20881.0,20880.0,0.01501727]
[1673734217879,3.91421637,20881.0,20880.0,0.01501727]
[1673734218591,3.16584104,20881.0,20880.0,0.01501727]
[1673734218847,3.48563104,20881.0,20880.0,0.01501727]
[1673734219102,3.16584104,20881.0,20880.0,0.01501727]
[1673734219349,3.43564579,20881.0,20880.0,0.01501727]
[1673734219591,3.11585579,20881.0,20880.0,0.01501727]
[1673734219817,3.43564579,20881.0,20880.0,0.01501727]
[1673734220108,2.9394041,20881.0,20880.0,0.01501727]
[1673734220860,2.6196141,20881.0,20880.0,0.01501727]
[1673734221106,2.9394041,20881.0,20880.0,0.01501727]
[1673734221530,3.36798943,20881.0,20880.0,0.01501727]
[1673734222543,3.36798943,20881.0,20880.0,0.01491627]
[1673734223514,3.38702943,20881.0,20880.0,0.01491627]
[1673734226292,3.43701468,20881.0,20880.0,0.01491627]
[1673734227781,3.00842935,20881.0,20880.0,0.01491627]
[1673734228251,2.68863935,20881.0,20880.0,0.01491627]
[1673734228477,3.00842935,20881.0,20880.0,0.01491627]
[1673734228708,2.68863935,20881.0,20880.0,0.01491627]
[1673734229025,3.00842935,20881.0,20880.0,0.01491627]
[1673734230581,2.6196141,20881.0,20880.0,0.01491627]
[1673734230839,1.89248013,20881.0,20880.0,0.20564222]
[1673734231090,1.35191861,20881.0,20880.0,0.12961627]
[1673734231602,1.20853,20881.0,20880.0,0.60854327]
[1673734231854,1.07253,20881.0,20880.0,0.60754327]
[1673734232115,1.16453,20881.0,20880.0,0.61054327]
[1673734232360,1.07253,20881.0,20880.0,1.31507027]
[1673734232631,1.16453,20881.0,20880.0,1.31807027]
[1673734232864,1.17595023,20881.0,20880.0,1.46080647]
[1673734233374,0.42149539,20881.0,20880.0,1.67519422]
[1673734233631,0.42149539,20881.0,20880.0,3.58703457]
[1673734233872,0.42149539,20881.0,20880.0,3.87339661]
[1673734234144,0.14338861,20887.0,20881.0,0.1]
[1673734234405,0.35847152,20889.0,20883.0,0.6]
[1673734234665,0.35847152,20889.0,20884.0,2.10523219]
[1673734234895,0.65174087,20890.0,20885.0,0.19072595]
[1673734234896,0.36503836,20890.0,20885.0,0.19072595]
[1673734235166,0.14995545,20890.0,20889.0,0.1147]
[1673734235401,0.14995545,20890.0,20889.0,0.30542595]
[1673734235654,0.14995545,20890.0,20889.0,0.1147]
[1673734235908,0.00656684,20890.0,20889.0,0.1147]
[1673734236389,0.10456684,20890.0,20889.0,0.1187]
[1673734236644,0.10456684,20890.0,20889.0,0.59742]
[1673734237871,0.00656684,20890.0,20889.0,0.59342]
[1673734238863,0.04856684,20890.0,20889.0,0.59542]
[1673734242101,0.04371016,20890.0,20889.0,0.59542]
[1673734244431,0.04371016,20890.0,20889.0,0.1167]
[1673734245656,0.04371016,20890.0,20889.0,0.59542]
[1673734245917,0.04371016,20890.0,20889.0,0.5952487]
[1673734246162,0.04371016,20890.0,20889.0,1.0739687]
[1673734249120,0.04371016,20890.0,20889.0,1.1881687]
[1673734253380,0.04371016,20890.0,20889.0,1.18844075]
[1673734254379,0.04371016,20890.0,20889.0,1.1881687]
[1673734255360,0.04371016,20890.0,20889.0,0.7094487]
[1673734257366,0.04371016,20890.0,20889.0,0.2307287]
[1673734257603,0.04371016,20890.0,20889.0,0.1162]
[1673734257849,0.34371016,20890.0,20889.0,0.1162]
[1673734258378,0.82240716,20890.0,20889.0,0.002]
[1673734258896,1.32014416,20890.0,20889.0,0.002]
[1673734259141,1.63993416,20890.0,20889.0,0.002]
[1673734259387,1.32014416,20890.0,20889.0,0.002]
[1673734259640,1.94688999,20890.0,20889.0,0.002]
[1673734259890,1.63993416,20890.0,20889.0,0.002]
[1673734260135,1.60609983,20890.0,20889.0,0.002]
[1673734260402,1.60109983,20890.0,20889.0,0.002]
[1673734260651,2.07830152,20890.0,20884.0,0.1143]
[1673734260899,0.209704,20889.0,20884.0,0.30502595]
[1673734261144,1.736258,20888.0,20884.0,0.1143]
[1673734261920,1.736258,20888.0,20884.0,0.1853]
[1673734262166,1.736258,20888.0,20884.0,0.1143]
[1673734262938,1.736258,20888.0,20884.0,0.18572595]
[1673734263220,1.741258,20888.0,20884.0,0.25672595]
[1673734263475,1.741258,20888.0,20884.0,0.26172595]
[1673734264009,1.741258,20888.0,20884.0,0.071]
[1673734264457,1.262503,20888.0,20884.0,0.071]
[1673734265253,0.483748,20888.0,20884.0,0.26172595]
[1673734265517,0.005,20888.0,20884.0,0.85515795]
[1673734265769,0.005,20888.0,20884.0,1.33399295]
[1673734266771,0.005,20888.0,20884.0,1.143267]
[1673734270280,0.005,20888.0,20884.0,1.33399295]
[1673734271064,0.005,20888.0,20884.0,1.143267]
[1673734271568,0.005,20888.0,20884.0,1.47726887]
[1673734271831,0.005,20888.0,20884.0,1.143267]
[1673734272089,0.005,20888.0,20884.0,1.28654292]
[1673734272349,0.00490302,20888.0,20884.0,1.28654292]
[1673734272599,0.00490302,20888.0,20884.0,1.143267]
[1673734273111,0.00490302,20888.0,20884.0,0.1856]
[1673734273365,0.00490302,20888.0,20884.0,0.071]
[1673734273366,0.48365102,20888.0,20884.0,0.071]
[1673734273639,0.3,20887.0,20884.0,0.071]
[1673734275381,0.3,20887.0,20883.0,0.478839]
[1673734275628,0.783769,20887.0,20884.0,0.071]
[1673734276402,0.778769,20887.0,20883.0,0.478839]
[1673734276664,0.778769,20887.0,20882.0,0.9515518]
[1673734276911,0.778769,20887.0,20882.0,1.14227775]
[1673734277160,0.778769,20887.0,20884.0,0.071]
[1673734277430,0.783769,20887.0,20884.0,0.071]
[1673734278208,0.778769,20887.0,20882.0,1.21551792]
[1673734278499,0.484769,20887.0,20882.0,1.51924387]
[1673734278755,0.484769,20887.0,20882.0,1.62115775]
[1673734279013,0.489769,20887.0,20884.0,0.071]
[1673734279291,0.478769,20887.0,20882.0,1.62115575]
[1673734279803,0.484769,20887.0,20882.0,1.73415575]
[1673734280319,0.3,20886.0,20884.0,0.071]
[1673734280621,0.778799,20886.0,20884.0,0.071]
[1673734281137,0.778799,20886.0,20882.0,0.30522595]
[1673734281386,1.257588,20886.0,20882.0,0.1145]
[1673734282476,1.257588,20886.0,20881.0,0.87794065]
[1673734282477,1.377288,20886.0,20881.0,0.87794065]
[1673734282729,1.383288,20886.0,20882.0,0.113]
[1673734283497,1.352668,20886.0,20882.0,0.113]
[1673734283960,1.371708,20886.0,20882.0,0.113]
[1673734284694,0.1,20884.0,20882.0,0.113]
[1673734284938,0.957716,20883.0,20882.0,0.113]
[1673734285685,0.957716,20883.0,20881.0,0.87794065]
[1673734285923,0.484839,20884.0,20882.0,0.113]
[1673734286183,0.006,20884.0,20882.0,0.113]
[1673734286927,0.01136797,20884.0,20881.0,0.87794065]
[1673734287432,0.006,20883.0,20882.0,0.113]
[1673734287681,0.01136797,20884.0,20881.0,0.87294065]
[1673734287936,0.01736797,20884.0,20882.0,0.113]
[1673734288206,0.01136797,20884.0,20881.0,0.87294065]
[1673734288436,0.01736797,20884.0,20881.0,0.98594065]
[1673734291346,0.31736797,20884.0,20881.0,0.98594065]
[1673734291860,0.79620697,20884.0,20881.0,0.98594065]
[1673734292125,0.93959558,20884.0,20881.0,0.98594065]
[1673734293462,1.41843058,20884.0,20881.0,0.98594065]
[1673734293669,1.27504197,20884.0,20881.0,0.98594065]
[1673734293943,1.41843058,20884.0,20881.0,0.98594065]
[1673734294177,1.74811349,20884.0,20881.0,0.98594065]
[1673734295935,0.14338861,20883.0,20881.0,0.98594065]
[1673734296189,0.957762,20882.0,20881.0,0.98594065]
[1673734296431,1.257762,20882.0,20881.0,0.98594065]
[1673734296897,1.257762,20882.0,20881.0,0.87294065]
[1673734297198,1.257762,20882.0,20881.0,0.98594065]
[1673734297450,1.257762,20882.0,20881.0,0.87294065]
[1673734297717,1.263762,20882.0,20881.0,0.98594065]
[1673734299033,1.269762,20882.0,20881.0,1.09894065]
[1673734300055,1.257762,20882.0,20880.0,0.01391627]
[1673734300365,0.3,20881.0,20880.0,0.01391627]
[1673734301082,0.3,20881.0,20880.0,0.08491627]
[1673734301333,0.3,20881.0,20880.0,0.01391627]
[1673734301888,0.275,20881.0,20880.0,0.08491627]
[1673734302130,0.005,20881.0,20880.0,0.08491627]
[1673734303154,0.483904,20881.0,20880.0,0.08491627]
[1673734303397,0.783904,20881.0,20880.0,0.08491627]
[1673734304913,0.483904,20881.0,20880.0,0.08491627]
[1673734305166,0.783904,20881.0,20880.0,0.08491627]
[1673734306693,1.262808,20881.0,20880.0,0.08491627]
[1673734307382,1.281848,20881.0,20880.0,0.08491627]
[1673734307882,1.601638,20881.0,20880.0,0.08491627]
[1673734308872,1.491552,20881.0,20880.0,0.08491627]
[1673734309114,1.281848,20881.0,20880.0,0.08491627]
[1673734309375,1.601638,20881.0,20880.0,0.08491627]
[1673734309623,1.491552,20881.0,20880.0,0.08491627]
[1673734309872,1.281848,20881.0,20880.0,0.08491627]
[1673734310089,1.601638,20881.0,20880.0,0.08491627]
[1673734310341,1.281848,20881.0,20880.0,0.08491627]
[1673734311862,0.981848,20881.0,20880.0,0.08491627]
[1673734313097,1.281848,20881.0,20880.0,0.08491627]
[1673734314568,1.601638,20881.0,20880.0,0.08491627]
[1673734314779,1.571068,20881.0,20880.0,0.08491627]
[1673734315075,1.460982,20881.0,20880.0,0.08491627]
[1673734315326,2.21812321,20881.0,20880.0,0.01391627]
[1673734315585,3.34160017,20881.0,20880.0,0.01391627]
[1673734315837,3.50710474,20881.0,20880.0,0.01652465]
[1673734316096,3.50712018,20881.0,20880.0,0.01652465]
[1673734316344,3.52707354,20881.0,20880.0,0.02152465]
[1673734316587,3.52707354,20881.0,20880.0,0.01752465]
[1673734316838,3.53007354,20881.0,20880.0,0.02252465]
[1673734317870,3.17215311,20881.0,20880.0,0.02252465]
[1673734318125,3.53058646,20881.0,20880.0,0.02252465]
[1673734318375,3.04827757,20881.0,20880.0,0.02252465]
[1673734318624,3.53059965,20881.0,20880.0,0.02252465]
[1673734319168,3.1721663,20881.0,20880.0,0.02252465]
[1673734319426,3.53059965,20881.0,20880.0,0.02252465]
[1673734320137,3.24505202,20881.0,20880.0,0.02252465]
[1673734320379,3.05610481,20881.0,20880.0,0.02252465]
[1673734320623,2.81843766,20881.0,20880.0,0.02252465]
[1673734320875,2.8170448,20881.0,20880.0,0.02252465]
[1673734321121,2.81707411,20881.0,20880.0,0.02252465]
[1673734321361,2.46000431,20881.0,20880.0,0.02252465]
[1673734324440,2.41195767,20881.0,20880.0,0.02252465]
[1673734324639,2.76902905,20881.0,20880.0,0.02252465]
[1673734325111,3.05467937,20881.0,20880.0,0.02252465]
[1673734325390,1.9013663,20881.0,20880.0,0.02252465]
[1673734325641,1.70611629,20881.0,20880.0,0.02252465]
[1673734325890,1.58929401,20881.0,20880.0,0.02252465]
[1673734326154,1.90908401,20881.0,20880.0,0.02252465]
[1673734326371,1.58929401,20881.0,20880.0,0.02252465]
[1673734326877,1.58929401,20881.0,20880.0,0.02172465]
[1673734327134,0.071,20881.0,20880.0,0.2124506]
[1673734327405,0.14286697,20884.0,20880.0,1.1703046]
[1673734327661,0.14286697,20885.0,20881.0,0.29072595]
[1673734327938,0.14286697,20887.0,20882.0,0.19072595]
[1673734328211,0.14286697,20888.0,20883.0,0.30542595]
[1673734328439,0.49993936,20889.0,20884.0,1.14837395]
[1673734328440,0.35715601,20889.0,20884.0,1.14837395]
[1673734328686,0.35715601,20889.0,20885.0,0.19072595]
[1673734328940,0.14286697,20889.0,20886.0,0.66951095]
[1673734329706,0.14286697,20889.0,20886.0,0.478785]
[1673734330270,0.364008,20890.0,20886.0,0.478785]
[1673734330524,0.14286697,20889.0,20886.0,0.66951095]
[1673734330774,0.364008,20890.0,20886.0,0.478785]
[1673734331023,0.364008,20890.0,20886.0,0.77751095]
[1673734331791,0.14971896,20890.0,20886.0,0.66951095]
[1673734332044,0.00685199,20890.0,20886.0,0.89221095]
[1673734332516,0.00685199,20890.0,20888.0,0.1143]
[1673734332770,0.00685199,20890.0,20888.0,1.071761]
[1673734336298,0.00685199,20890.0,20888.0,0.593022]
[1673734336737,0.00685199,20890.0,20888.0,0.1143]
[1673734338255,0.48554999,20890.0,20888.0,0.1143]
[1673734338494,0.96424699,20890.0,20886.0,0.1147]
[1673734339522,0.3,20889.0,20886.0,0.1147]
[1673734339781,0.77873,20889.0,20886.0,0.2227]
[1673734340531,1.25745,20889.0,20884.0,0.1143]
[1673734340782,1.25745,20889.0,20886.0,0.108]
[1673734341288,1.37115,20889.0,20886.0,0.108]
[1673734343600,1.39019,20889.0,20886.0,0.108]
[1673734343861,0.31979,20888.0,20886.0,0.108]
[1673734344115,1.946002,20887.0,20886.0,0.108]
[1673734344383,2.056088,20887.0,20886.0,0.108]
[1673734344639,1.736298,20887.0,20886.0,0.108]
[1673734345385,1.736298,20887.0,20883.0,0.1146]
[1673734345642,1.736298,20887.0,20886.0,0.108]
[1673734345904,1.736298,20887.0,20883.0,0.1146]
[1673734346154,1.736298,20887.0,20886.0,0.108]
[1673734346402,1.736298,20887.0,20883.0,0.1146]
[1673734346663,1.736298,20887.0,20883.0,0.2536]
[1673734347665,1.736298,20887.0,20883.0,0.44432595]
[1673734348436,1.736298,20887.0,20883.0,0.2536]
[1673734349342,1.736298,20887.0,20883.0,0.44432595]
[1673734349855,1.736298,20887.0,20883.0,0.2536]
[1673734352643,0.01904,20886.0,20883.0,0.139]
[1673734352887,0.957624,20885.0,20883.0,0.139]
[1673734353159,0.31979,20884.0,20883.0,0.139]
[1673734353420,1.25767,20884.0,20883.0,0.139]
[1673734353671,1.25767,20884.0,20880.0,0.12642465]
[1673734353927,1.25767,20884.0,20883.0,0.139]
[1673734354941,1.25767,20884.0,20880.0,0.12642465]
[1673734355455,1.25767,20884.0,20883.0,0.042]
[1673734356229,1.25767,20884.0,20880.0,0.12642465]
[1673734356479,1.25867,20884.0,20880.0,0.26542465]
[1673734357486,1.25767,20884.0,20880.0,0.12642465]
[1673734357975,1.25767,20884.0,20883.0,0.048]
[1673734358238,1.2265,20884.0,20880.0,0.12642465]
[1673734358491,1.2275,20884.0,20880.0,0.26642465]
[1673734358743,1.2265,20884.0,20880.0,0.12642465]
[1673734359004,1.2455,20884.0,20880.0,0.12642465]
[1673734359256,1.2265,20884.0,20880.0,0.12642465]
[1673734359508,1.2275,20884.0,20880.0,0.4571506]
[1673734359775,1.2275,20884.0,20880.0,0.26642465]
[1673734360795,1.2265,20884.0,20880.0,0.12642465]
[1673734361559,1.2275,20884.0,20880.0,0.26642465]
[1673734363290,1.2275,20884.0,20880.0,0.4571506]
[1673734363508,0.001,20884.0,20882.0,0.1143]
[1673734363756,0.001,20884.0,20882.0,0.30502595]
[1673734363981,0.001,20884.0,20882.0,0.1143]
[1673734364204,0.001,20884.0,20882.0,0.59318]
[1673734364936,0.14286697,20887.0,20882.0,0.64118]
[1673734365189,0.14286697,20887.0,20883.0,0.19072595]
[1673734365442,0.14286697,20887.0,20884.0,0.66955895]
[1673734365702,0.3,20887.0,20884.0,0.66955895]
[1673734366242,0.3,20887.0,20884.0,0.478833]
[1673734366243,0.44286697,20887.0,20884.0,0.478833]
[1673734367250,0.46386697,20887.0,20884.0,0.483833]
[1673734370281,0.46386697,20887.0,20884.0,0.005]
[1673734371509,0.94263697,20887.0,20884.0,0.005]
[1673734373743,2.00998236,20888.0,20885.0,0.19072595]
[1673734373744,0.17740556,20888.0,20885.0,0.19072595]
[1673734374002,0.21465541,20889.0,20886.0,0.29072595]
[1673734374267,0.00685199,20890.0,20887.0,1.444798]
[1673734374548,0.00685199,20890.0,20889.0,0.2146554]
[1673734374804,0.00685199,20890.0,20889.0,1.6508154]
[1673734375063,0.00685199,20890.0,20889.0,1.8801154]
[1673734375594,0.00685199,20890.0,20889.0,2.49002288]
[1673734376069,0.00685199,20890.0,20889.0,3.82162873]
[1673734376336,0.00685199,20890.0,20889.0,1.8801154]
[1673734376856,0.00685199,20890.0,20889.0,2.49002288]
[1673734377133,0.00685199,20890.0,20889.0,2.62873836]
[1673734377371,0.00685199,20890.0,20889.0,2.94365234]
[1673734377641,0.20426055,20893.0,20890.0,0.1]
[1673734377901,0.20426055,20893.0,20891.0,1.550725]
[1673734378397,0.20426055,20893.0,20892.0,0.00042063]
[1673734378656,0.20426055,20893.0,20892.0,0.47907263]
[1673734378920,0.20426055,20893.0,20892.0,0.95772463]
[1673734380141,0.20426055,20893.0,20892.0,1.09772463]
[1673734383421,0.20426055,20893.0,20892.0,1.097304]
[1673734384184,0.19926055,20893.0,20892.0,1.097304]
[1673734384946,0.19926055,20893.0,20892.0,1.212004]
[1673734386960,0.19926055,20893.0,20892.0,1.21242463]
[1673734387202,0.19926055,20893.0,20892.0,1.32672463]
[1673734387723,0.19926055,20893.0,20892.0,1.42672463]
[1673734389237,0.19926055,20893.0,20892.0,1.32672463]
[1673734390261,0.19926055,20893.0,20892.0,1.42672463]
[1673734390514,0.17864479,20893.0,20892.0,1.42672463]
[1673734390759,0.17864479,20893.0,20892.0,1.38022463]
[1673734395316,0.17864479,20893.0,20892.0,1.28022463]
[1673734395562,0.17864479,20893.0,20892.0,1.388304]
[1673734398093,0.17864479,20893.0,20892.0,1.288304]
[1673734399097,0.17864479,20893.0,20892.0,1.2887111]
[1673734399343,0.17864479,20893.0,20892.0,1.1978111]
[1673734401639,0.17864479,20893.0,20892.0,1.2978111]
[1673734401905,0.17864479,20893.0,20892.0,1.3894111]
[1673734402667,0.17864479,20893.0,20892.0,1.2494111]
[1673734402937,0.00689709,20894.0,20892.0,1.2494111]
[1673734403191,0.00689709,20894.0,20893.0,0.1909]
[1673734403438,0.00188355,20897.0,20894.0,0.1]
[1673734403693,0.00188355,20897.0,20895.0,0.957166]
[1673734404696,0.00188355,20897.0,20895.0,1.096166]
[1673734405683,0.00188355,20897.0,20895.0,1.09597597]
[1673734407221,0.00188355,20897.0,20895.0,0.61739297]
[1673734408003,0.00188355,20897.0,20896.0,0.00040702]
[1673734410097,0.00188355,20897.0,20896.0,0.14]
[1673734411438,0.00188355,20897.0,20896.0,0.14040702]
[1673734412139,0.00188355,20897.0,20896.0,0.14]
[1673734421561,0.14304441,20898.0,20896.0,0.14]
[1673734421829,0.00027232,20898.0,20896.0,0.14]
[1673734422611,0.00027232,20898.0,20895.0,0.62226396]
[1673734423160,0.00127232,20898.0,20896.0,0.139]
[1673734423672,0.00027232,20898.0,20895.0,0.62226396]
[1673734423944,0.00127232,20898.0,20895.0,0.76126396]
[1673734424202,0.35719692,20898.0,20894.0,0.62186592]
[1673734424430,1.13571392,20898.0,20894.0,0.14327592]
[1673734424692,0.14277209,20897.0,20894.0,0.14327592]
[1673734425164,0.14277209,20897.0,20896.0,0.139]
[1673734425413,0.14277209,20897.0,20894.0,0.3581898]
[1673734425667,0.14377209,20897.0,20894.0,1.09691261]
[1673734425915,0.14377209,20897.0,20894.0,0.3581898]
[1673734425916,0.14277209,20897.0,20894.0,0.3581898]
[1673734426191,0.3569246,20897.0,20894.0,0.3581898]
[1673734426434,0.3579246,20897.0,20896.0,0.139]
[1673734426972,0.3589246,20897.0,20896.0,0.139]
[1673734427234,0.6589246,20897.0,20896.0,0.139]
[1673734427725,0.99468951,20897.0,20896.0,0.139]
[1673734427982,1.27888778,20897.0,20894.0,0.14327592]
[1673734428235,0.1435153,20896.0,20894.0,0.14327592]
[1673734428487,0.1435153,20896.0,20893.0,0.8367978]
[1673734428983,0.1435153,20896.0,20894.0,0.14327592]
[1673734429251,0.1435153,20896.0,20894.0,0.13940706]
[1673734429455,0.1435153,20896.0,20894.0,0.00040706]
[1673734429706,0.1445153,20896.0,20894.0,0.14368298]
[1673734429955,0.1445153,20896.0,20894.0,0.00040706]
[1673734430482,0.1445153,20896.0,20893.0,0.8367978]
[1673734430733,0.1445153,20896.0,20894.0,0.00040706]
[1673734431233,0.1455153,20896.0,20894.0,0.13940706]
[1673734432483,0.1455153,20896.0,20894.0,0.139]
[1673734433447,0.1455153,20896.0,20894.0,0.13940706]
[1673734434674,0.0947253,20896.0,20894.0,0.13940706]
[1673734434932,0.3927253,20896.0,20894.0,0.00040706]
[1673734435189,0.0947253,20896.0,20894.0,0.13940706]
[1673734435707,0.3947253,20896.0,20894.0,0.13940706]
[1673734436467,0.3947253,20896.0,20894.0,0.139]
[1673734437185,0.0947253,20896.0,20894.0,0.139]
[1673734437412,0.0927253,20896.0,20893.0,0.14327592]
[1673734437659,0.0947253,20896.0,20894.0,0.139]
[1673734438133,0.0947253,20896.0,20894.0,0.13789252]
[1673734439126,0.30887781,20896.0,20894.0,0.13789252]
[1673734439365,0.0947253,20896.0,20894.0,0.13789252]
[1673734440363,0.0947253,20896.0,20894.0,0.13829958]
[1673734441113,0.0947253,20896.0,20894.0,0.13789252]
[1673734441376,0.0947253,20896.0,20894.0,0.13829958]
[1673734441617,0.0947253,20896.0,20894.0,0.13789252]
[1673734444640,0.30387781,20897.0,20894.0,0.13789252]
[1673734444885,0.41837781,20897.0,20894.0,0.13789252]
[1673734445134,0.2072253,20897.0,20894.0,0.13789252]
[1673734445638,0.2072253,20897.0,20894.0,0.478603]
[1673734445885,0.2072253,20897.0,20894.0,0.62187892]
[1673734446401,0.1145,20897.0,20894.0,1.3153988]
[1673734446656,0.09299762,20898.0,20895.0,0.14327592]
[1673734446868,0.002,20897.0,20895.0,0.62185492]
[1673734447665,0.07154762,20898.0,20895.0,0.62185492]
[1673734447913,0.07254762,20898.0,20895.0,0.76085492]
[1673734448181,0.07154762,20898.0,20895.0,0.62185492]
[1673734448430,0.001,20897.0,20895.0,0.76085492]
[1673734448928,0.001,20897.0,20895.0,0.89985492]
[1673734449641,0.07154762,20898.0,20895.0,0.62185492]
[1673734450929,0.001,20898.0,20895.0,0.76085492]
[1673734451193,0.001,20898.0,20895.0,0.9757688]
[1673734451452,0.001,20898.0,20895.0,1.4543518]
[1673734451974,0.001,20898.0,20895.0,1.23943792]
[1673734455610,0.001,20898.0,20895.0,1.4543518]
[1673734456104,0.001,20898.0,20896.0,0.1]
[1673734456356,0.001,20898.0,20896.0,0.957105]
[1673734456607,0.001,20898.0,20896.0,1.057105]
[1673734456826,0.001,20898.0,20896.0,0.957105]
[1673734457297,0.11999992,20899.0,20896.0,0.957105]
[1673734457599,0.001,20898.0,20896.0,1.097105]
[1673734458370,0.26338194,20899.0,20896.0,0.957105]
[1673734458621,0.26438194,20899.0,20896.0,1.097105]
[1673734459376,0.12099992,20899.0,20896.0,1.097105]
[1673734459642,0.001,20898.0,20896.0,1.097105]
[1673734459915,0.11999992,20899.0,20896.0,0.957105]
[1673734460169,0.12099992,20899.0,20896.0,1.097105]
[1673734460611,0.001,20898.0,20896.0,1.237105]
[1673734460853,0.10789993,20899.0,20896.0,0.957105]
[1673734462362,0.25128195,20899.0,20896.0,0.957105]
[1673734462618,0.25128195,20899.0,20896.0,0.478545]
[1673734462901,0.001,20898.0,20896.0,0.14]
[1673734463153,0.001,20898.0,20895.0,0.478579]
[1673734463407,0.44438202,20898.0,20896.0,0.14]
[1673734463876,0.44338202,20898.0,20895.0,0.478579]
[1673734464122,0.14338202,20898.0,20894.0,0.62186692]
[1673734464364,0.14438202,20898.0,20895.0,0.139]
[1673734464605,0.14338202,20898.0,20894.0,0.62186692]
[1673734464890,0.25888202,20898.0,20896.0,0.14]
[1673734465872,0.25788202,20898.0,20894.0,0.14327592]
[1673734466111,0.25788202,20898.0,20894.0,1.10046792]
[1673734466357,0.25988202,20898.0,20894.0,1.23946792]
[1673734468075,0.4750009,20898.0,20894.0,1.096192]
[1673734468834,0.25988202,20898.0,20894.0,1.096192]
[1673734469084,0.25988202,20898.0,20894.0,1.43019387]
[1673734469356,0.25988202,20898.0,20894.0,1.25246792]
[1673734470874,0.25988202,20898.0,20894.0,1.44319387]
[1673734471132,0.1165,20898.0,20894.0,1.65810775]
[1673734471628,0.1165,20898.0,20894.0,1.4673818]
[1673734471894,0.1165,20898.0,20894.0,1.65810775]
[1673734472661,0.1165,20898.0,20894.0,1.4673818]
[1673734473176,0.1165,20898.0,20895.0,0.14327592]
[1673734473429,0.1165,20898.0,20896.0,0.47856]
[1673734473681,0.002,20898.0,20896.0,0.47856]
[1673734473933,0.1157,20898.0,20896.0,0.47856]
[1673734474475,0.1137,20898.0,20896.0,0.61856]
[1673734474734,0.1147,20898.0,20896.0,0.61856]
[1673734477611,0.001,20898.0,20896.0,1.28784595]
[1673734477873,0.001,20898.0,20897.0,0.14327592]
[1673734478145,0.00900792,20901.0,20897.0,1.77603547]
[1673734478383,0.00900792,20901.0,20898.0,0.1430064]
[1673734478647,0.00900792,20901.0,20899.0,0.956982]
[1673734479143,0.00900792,20901.0,20899.0,1.0999884]
[1673734479406,0.00900792,20901.0,20899.0,0.956982]
[1673734479657,0.01000792,20901.0,20899.0,0.956982]
[1673734480005,0.00900792,20901.0,20899.0,0.956982]
[1673734480193,0.00900792,20901.0,20899.0,0.958982]
[1673734480704,0.00900792,20901.0,20899.0,1.1019884]
[1673734480921,0.00900792,20901.0,20899.0,0.958982]
[1673734483094,0.00900792,20901.0,20899.0,1.1019884]
[1673734483347,0.00900792,20901.0,20899.0,0.958982]
[1673734486508,0.00900792,20901.0,20899.0,1.073482]
[1673734487981,0.00900792,20901.0,20899.0,1.173482]
[1673734488249,0.00900792,20901.0,20900.0,0.0085]
[1673734488722,0.00900792,20901.0,20900.0,0.965436]
[1673734489492,0.01000792,20901.0,20900.0,1.104436]
[1673734489745,0.01000792,20901.0,20900.0,0.965436]
[1673734489746,0.00900792,20901.0,20900.0,0.965436]
[1673734489999,0.01000792,20901.0,20900.0,1.103436]
[1673734493812,0.01000792,20901.0,20900.0,1.4746424]
[1673734494062,0.01000792,20901.0,20900.0,1.331636]
[1673734494323,0.01000792,20901.0,20900.0,0.738668]
[1673734494580,0.01000792,20901.0,20900.0,0.616468]
[1673734494849,0.00900792,20901.0,20900.0,0.478468]
[1673734495097,0.01000792,20901.0,20900.0,0.616468]
[1673734495350,0.00900792,20901.0,20899.0,0.478491]
[1673734495605,0.01000792,20901.0,20900.0,0.139]
[1673734495862,0.00900792,20901.0,20899.0,0.478491]
[1673734496140,0.01000792,20901.0,20900.0,0.139]
[1673734496440,0.00900792,20901.0,20898.0,0.593013]
[1673734496651,0.01000792,20901.0,20899.0,0.138]
[1673734497733,0.01100792,20901.0,20899.0,0.276]
[1673734497956,0.00851297,20902.0,20901.0,0.00499208]
[1673734499529,0.00951297,20902.0,20901.0,0.14399208]
[1673734500534,0.00951297,20902.0,20901.0,0.00499208]
[1673734500535,0.00851297,20902.0,20901.0,0.00499208]
[1673734500797,0.00951297,20902.0,20901.0,0.14399208]
[1673734501050,0.00951297,20902.0,20901.0,0.00499208]
[1673734501306,0.01051297,20902.0,20901.0,0.14399208]
[1673734501580,0.00951297,20902.0,20901.0,0.00499208]
[1673734501826,0.01051297,20902.0,20901.0,0.14334508]
[1673734502061,0.00851297,20902.0,20901.0,0.00434508]
[1673734502270,0.00951297,20902.0,20901.0,0.14334508]
[1673734502522,0.00851297,20902.0,20901.0,0.00434508]
[1673734502774,0.00951297,20902.0,20901.0,0.14334508]
[1673734504060,0.00951297,20902.0,20901.0,1.10023708]
[1673734504323,0.00851297,20902.0,20901.0,0.96123708]
[1673734504577,0.00951297,20902.0,20901.0,1.10023708]
[1673734505080,0.01051297,20902.0,20901.0,1.23923708]
[1673734505343,0.00951297,20902.0,20901.0,1.10023708]
[1673734505574,0.01051297,20902.0,20901.0,1.23923708]
[1673734505835,0.00851297,20902.0,20901.0,0.96123708]
[1673734507647,0.00951297,20902.0,20901.0,1.10023708]
[1673734507913,0.00851297,20902.0,20901.0,0.96123708]
[1673734508143,0.00722895,20903.0,20902.0,0.001]
[1673734508403,0.00722895,20903.0,20902.0,0.957846]
[1673734510146,0.00822895,20903.0,20902.0,1.097846]
[1673734513258,0.00822895,20903.0,20902.0,1.09800907]
[1673734514816,0.00822895,20903.0,20902.0,1.21220907]
[1673734517974,0.00822895,20903.0,20902.0,1.35521547]
[1673734519015,0.00822895,20903.0,20902.0,2.31220964]
[1673734519261,0.00822895,20903.0,20902.0,1.35521547]